Cogmind - Beta 15 @@@ ROGUE MODE // 2025.06.05 @ 10:13:07 Player: Fleshy Vegetable Bird Result: Destroyed by H9-WFN(R) with Subdweller Laser Performance ------------- Evolutions (0) 0 Regions Visited (2) 400 Robots Destroyed (36) 180 Value Destroyed (723) 723 Prototype IDs (2) 40 Alien Tech Used (0) 0 Bonus (-14) -14 TOTAL SCORE: 1329 Bonus ------- Friendly Fire -14 Cogmind --------- Core Integrity 0/250 Matter 203/300 Energy 83/200 System Corruption 0% Temperature Cool (6) Movement Rolling (107) Ox1 Location -10/Subcaves Parts ------- > --- POWER (1) -------- Subdweller Power Source > --- PROPULSION (2) --- Wheel Subdweller Monowheel > --- UTILITY (2) ------ High-capacity Storage Unit Seismic Detector > --- WEAPON (2) ------- Assault Rifle Heavy Battle Rifle > --- INVENTORY (20) --- Wheel Wheel Wheel Subdweller Monowheel Large Storage Unit High-capacity Matter Pod (116) Subdweller Optics Scrap Shield Hacking Suite Medium Laser Medium Laser Medium Laser Medium Laser Subdweller Beam Cannon Datajack Mining Laser Peak State ------------ > --- POWER ------------ Subdweller Power Source > --- PROPULSION ------- Wheel Subdweller Monowheel > --- UTILITY ---------- High-capacity Storage Unit Seismic Detector > --- WEAPON ----------- Assault Rifle Heavy Battle Rifle > --- INVENTORY -------- Subdweller Power Source Wheel Wheel Wheel Subdweller Monowheel Large Storage Unit High-capacity Matter Pod Subdweller Optics Scrap Shield Hacking Suite Medium Laser Medium Laser Medium Laser Medium Laser Subdweller Beam Cannon Datajack Mining Laser Piercing Trap [Rating: 14] Favorites ----------- Power Ion Engine Engine Ion Engine Propulsion Wheel Treads Light Treads Wheel Wheel Utility High-capacity Storage Unit Device Seismic Detector Storage High-capacity Storage Unit Protection Light Armor Plating Weapon Assault Rifle Energy Gun Medium Laser Ballistic Gun Assault Rifle Special Weapon Mining Laser Build | -11 -10 -10 ------- Run | Yrd Mat Sub Slots Evolved . | . . . Power . | . . . Propulsion . | . . . Utility . | . . . Weapon . | . . . Parts Attached 26 | 9 7 10 Power 4 | 1 . 3 Engine 4 | 1 . 3 Core . | . . . Reactor . | . . . Propulsion 8 | 3 3 2 Treads 1 | . 1 . Leg . | . . . Wheel 7 | 3 2 2 Hover . | . . . Flight . | . . . Utility 6 | 2 2 2 Device 3 | 1 . 2 Storage 2 | 1 1 . Processor . | . . . Hackware . | . . . Protection 1 | . 1 . Artifact . | . . . Weapon 8 | 3 2 3 Energy Gun 2 | 1 . 1 Energy Cannon . | . . . Ballistic Gun 5 | 2 2 1 Ballistic Cannon . | . . . Launcher . | . . . Special Weapon 1 | . . 1 Impact Weapon . | . . . Slashing Weapon . | . . . Piercing Weapon . | . . . Special Melee Weapon . | . . . Unidentified Prototypes . | . . . Parts Lost 9 | . 4 5 Power 2 | . . 2 Propulsion 2 | . 2 . Utility 3 | . 1 2 Weapon 2 | . 1 1 Highest Loss Streak 2 | . 2 2 To Critical Strikes . | . . . Average Backups 15 | 2 13 17 Power . | . 1 . Propulsion 4 | 1 4 4 Utility 3 | . 3 4 Weapon 5 | . 3 7 Tool/Special . | . . . Unused Backups 16 | 1 . 15 Power . | . . . Propulsion 4 | . . 4 Utility 6 | 1 . 5 Weapon 5 | . . 5 Tool/Special 1 | . . 1 Average Slot Usage (%) 92 | . 95 89 Engine 12 | . 14 11 Treads 9 | . 6 11 Wheel 18 | . 20 16 Device 6 | . 3 8 Storage 14 | . 14 14 Protection 4 | . 10 1 Ballistic Gun 23 | . 23 22 Peak Build Rating 14 | 7 9 14 Average Rating 9 | 5 8 10 On Entrance 5 | . 7 9 Naked Turns . | . . . Heaviest Build 52 | 15 52 52 Greatest Support 30 | 26 20 30 Greatest Overweight (x) 5 | . 5 5 Average Overweight (x) 3 | . 2 3 Largest Inventory Capacity 20 | 8 20 20 Average Capacity 18 | 5 18 20 Most Carried 20 | 7 19 20 Average Carried 15 | 2 13 18 Final Capacity 20 | 8 20 20 Final Carried 19 | 7 19 17 Class Distribution -------------------- 100% | Mutant Dominant Class ---------------- Mutant | -10/Materials Mutant | -10/Subcaves Resources | -11 -10 -10 ----------- Run | Yrd Mat Sub Matter Collected 1067 | 344 359 364 Remotely . | . . . Salvage Created 1199 | 240 726 233 Parts 73 | 15 39 19 Haulers Intercepted 2 | . 2 . Recyclers Shooed 2 | 1 1 . Parts Field Recycled . | . . . Retrieved Matter . | . . . Parts Self-Destructed 23 | . . 23 Prevented . | . . . Kills | -11 -10 -10 ------- Run | Yrd Mat Sub Combat Hostiles Destroyed 21 | . 14 7 Guns 21 | . 14 7 Classes Destroyed 9 | 3 5 1 Worker 3 | 2 1 . Tunneler 6 | 5 1 . Hauler 2 | . 2 . Recycler 1 | 1 . . Operator 1 | . 1 . Watcher 2 | . 2 . Swarmer 6 | . 3 3 Grunt 11 | . 11 . Subdweller 4 | . . 4 Best Kill Streak 6 | 6 4 3 Combat Bots Only 3 | . 3 3 Max Kills in Single Turn 1 | 1 1 1 Gunslinging . | . . . Exploded . | . . . Melee . | . . . Uniques/NPCs Destroyed . | . . . Combat | -11 -10 -10 -------- Run | Yrd Mat Sub Hostile Shots Fired 127 | . 81 46 Missed 38 | . 25 13 Hits 89 | . 56 33 Projectile 89 | . 56 33 Damage Taken 1173 | . 642 531 Core 267 | . 149 118 Absorbed by Shields . | . . . Core Remaining (%) 100 | 100 . . Volleys Fired 143 | 18 92 33 Largest 2 | 2 2 2 Hottest 100 | 70 70 100 Shots Fired 238 | 36 153 49 Gun 221 | 36 153 32 Cannon . | . . . Launcher . | . . . Special 17 | . . 17 Kinetic 191 | 18 141 32 Thermal 47 | 18 12 17 Explosive . | . . . Electromagnetic . | . . . Robot Hit Streak 14 | 14 8 9 Robot Miss Streak 4 | 1 4 2 Penetration Max . | . . . Secondary Targets 3 | . 1 2 Max Gunslinging Chain 1 | . 1 1 Shots Hit Robots 144 | 29 94 21 Core Hits 55 | 9 36 10 Critical Kills 1 | . . 1 Critical Parts Destroyed 1 | . 1 . Critical Strikes 3 | 1 1 1 Burn 1 | 1 . . Destroy 2 | . 1 1 Melee Attacks . | . . . Impact . | . . . Slashing . | . . . Piercing . | . . . Sneak Attacks . | . . . Combat Hostiles . | . . . Follow-up Attacks . | . . . Damage Inflicted 1767 | 356 1050 361 Guns 1767 | 356 1050 361 Cannons . | . . . Explosions . | . . . Melee . | . . . Ramming . | . . . Kinetic 1456 | 156 939 361 Thermal 311 | 200 111 . Explosive . | . . . Electromagnetic . | . . . Impact . | . . . Slashing . | . . . Piercing . | . . . Highest Corruption . | . . . Average Corruption . | . . . Corruption Purged . | . . . Corruption Blocked . | . . . Overload Shots . | . . . Overflow Damage . | . . . Projectiles . | . . . Explosions . | . . . Melee . | . . . Knockbacks . | . . . Impact . | . . . Kinetic . | . . . Secondary . | . . . Self-Inflicted Damage . | . . . Shots . | . . . Rammed . | . . . Targets Rammed . | . . . Kicked . | . . . Crushed . | . . . Highest Temperature 216 | 99 216 . Average Temperature 48 | 43 49 . Received Heat Transfer 402 | . 288 114 Siege Activations . | . . . Martial Activations . | . . . Shielding Activations . | . . . Robots Disrupted . | . . . Combat Hostiles . | . . . Robots Corrupted . | . . . Combat Hostiles . | . . . Parts Fried . | . . . Impact Corruptions . | . . . Robots Melted . | . . . Combat Hostiles . | . . . Parts Melted 3 | 3 . . Heat Transferred 999 | 666 333 . Parts Sabotaged . | . . . Parts Stolen . | . . . Parts Stripped . | . . . Power Chain Reactions . | . . . Alert | -11 -10 -10 ------- Run | Yrd Mat Sub Maximum Alert Level . | . . . Low Security (%) 100 | 100 100 . Level 1 . | . . . Level 2 . | . . . Level 3 . | . . . Level 4 . | . . . Level 5 . | . . . High Security . | . . . Max Security . | . . . Peak Influence 148 | 10 148 . Initial . | . . . Average 62 | 2 71 . Influence Increases 594 | 40 464 90 Destroy 0b10 Robot/C 340 | . 280 60 Destroy 0b10 Robot/NC 75 | 40 35 . Destroy Leader 58 | . 58 . Successful Hack 30 | . 30 . Destroy Structure 1 | . 1 . Lose Combat Pursuer 90 | . 60 30 Influence Decreases 543 | 40 455 48 Entered New Map 5 | . . 5 Time Decay 488 | 40 415 33 Lost Part 50 | . 40 10 Squads Dispatched 2 | . 2 . Investigation 1 | . 1 . Extermination . | . . . Reinforcement 1 | . 1 . Assault . | . . . Garrison . | . . . Intercept . | . . . Searches Triggered . | . . . Construction Impeded . | . . . Haulers Reinforced . | . . . Active Scanning Responses . | . . . Cargo Convoy Interrupts . | . . . Stealth | -11 -10 -10 --------- Run | Yrd Mat Sub Distress Signals 2 | . 2 . Communications Jammed . | . . . Distress Signals . | . . . Times Spotted 42 | . 28 14 Peak Tracking Total 6 | . 6 5 Tactical Retreats 5 | . 3 2 Traps | -11 -10 -10 ------- Run | Yrd Mat Sub Traps Triggered 4 | . 2 2 Indirectly . | . . . Trap Hack Attempts . | . . . Triggered . | . . . Disarmed . | . . . Reprogrammed . | . . . Reused 1 | . . 1 Traps Extracted . | . . . Installed 1 | . . 1 Triggered . | . . . Most Traps Carried 1 | . . 1 Machines | -11 -10 -10 ---------- Run | Yrd Mat Sub Machines Disabled . | . . . Max in Single Turn . | . . . Machines Repaired . | . . . Machines Dismantled . | . . . Machines Sabotaged . | . . . Overloaded Fab Kills . | . . . Hacking | -11 -10 -10 --------- Run | Yrd Mat Sub Machines Accessed 5 | . 4 1 Terminals 4 | . 4 . Fabricators . | . . . Repair Stations . | . . . Recycling Units . | . . . Scanalyzers . | . . . Garrison Access . | . . . Total Hacks 26 | . 22 4 Successful 14 | . 10 4 Failed 12 | . 12 . Catastrophic . | . . . Database Lockouts . | . . . Manual 17 | . 17 . Terminals 22 | . 22 . Fabricators . | . . . Repair Stations . | . . . Recycling Units . | . . . Scanalyzers . | . . . Garrison Access . | . . . Terminal Hacks 10 | . 6 4 Record 4 | . . 4 Part Schematic 2 | . 2 . Robot Analysis 1 | . 1 . Prototype ID Bank 1 | . 1 . Terminal Index 1 | . 1 . Locate Traps 1 | . 1 . Fabricator Hacks . | . . . Repair Station Hacks . | . . . Recycling Unit Hacks . | . . . Scanalyzer . | . . . Garrison Access Hacks . | . . . Unauthorized Hacks 4 | . 4 . Terminals 4 | . 4 . Botnet 3 | . 3 . Operators 1 | . 1 . Fabricators . | . . . Repair Stations . | . . . Recycling Units . | . . . Scanalyzers . | . . . Garrison Access . | . . . Data Cores Recovered . | . . . Used . | . . . Hacking Detections 4 | . 4 . Full Trace Events . | . . . Feedback Events . | . . . Feedback Blocked . | . . . Robot Schematics Acquired . | . . . Robots Built . | . . . Authchips . | . . . Time . | . . . Total Robot Build Rating . | . . . Part Schematics Acquired 2 | . 2 . Parts Built . | . . . Authchips . | . . . Time . | . . . Total Part Build Rating . | . . . Parts Repaired . | . . . Time . | . . . Parts Recycled . | . . . Recycled Matter . | . . . Retrieved Matter . | . . . Retrieved Components . | . . . Parts Scanalyzed . | . . . Part Schematics Acquired . | . . . Parts Damaged . | . . . Bothacking | -11 -10 -10 ------------ Run | Yrd Mat Sub Used RIF Installer . | . . . Robots Hacked . | . . . Non-combat . | . . . Combat . | . . . Robot Hacks Applied . | . . . Relay Couplers Released . | . . . Fabnet Peak Effective % . | . . . Robots Rewired . | . . . Allies Hacked . | . . . Hacks Repelled . | . . . Allies | -11 -10 -10 -------- Run | Yrd Mat Sub Total Allies . | . . . Largest Group . | . . . Highest-Rated Group . | . . . Highest-Rated Ally . | . . . Total Orders . | . . . Ally Attacks . | . . . Total Damage . | . . . Kills . | . . . Allies Corrupted . | . . . Allies Melted . | . . . Intel | -11 -10 -10 ------- Run | Yrd Mat Sub Active Infowar (turns) 1141 | . 93 1048 Terrain 35 | . . 35 Seismic 1106 | . 93 1013 Robot Analysis Total 1 | . 1 . Derelict Logs Recovered . | . . . Drone Launches . | . . . Drone Recoveries . | . . . Exploration | -11 -10 -10 ------------- Run | Yrd Mat Sub Turns Passed 2896 | 156 1081 1659 Spaces Moved 1431 | 92 605 734 Core 7 | 7 . . Treads . | . . . Legs . | . . . Wheels 1424 | 85 605 734 Hover . | . . . Flight . | . . . Fastest Speed 50 | 50 80 107 Average Speed 126 | 81 123 135 Slowest Speed 155 | 90 155 155 Overloaded Moves . | . . . Propulsion Burnouts . | . . . Robots Hopped . | . . . Potential Cave-ins . | . . . Cave-ins Triggered . | . . . Exploration Rate (%) 40 | 3 70 48 Regions Visited 2 Branch Regions 1 Pre-discovered Areas 1 | . . 1 Known Exits Taken . | . . . Unknown Exits Taken 2 | 1 1 . Scrap Searched . | . . . Spaces Dug . | . . . Terrain Destroyed 1 | . . 1 Melee . | . . . Projectile 1 | . . 1 AOE . | . . . Terrain Rammed . | . . . Walls Destroyed . | . . . Machines Disabled . | . . . Actions | -11 -10 -10 --------- Run | Yrd Mat Sub Total 2246 | 139 793 1314 Wait 579 | . 72 507 Move 1429 | 91 604 734 Hop . | . . . Pick Up 41 | 17 15 9 Fast Attach 3 | 1 2 . Attach 16 | 7 3 6 Detach . | . . . Swap 21 | 1 4 16 Drop 13 | 4 1 8 Fire 143 | 18 92 33 Melee . | . . . Ram . | . . . Kick . | . . . Crush . | . . . Escape Stasis . | . . . Rewire . | . . . Trap 1 | . . 1 Miscellaneous . | . . . Route ------- -11/Scrapyard -10/Materials (discovered 4 exits: [*Mat] / [*Min x2] / *Sub) -10/Subcaves (discovered 2 exits: [*Mat x2]) History --------- Turn | Location | Event 24 | -11/Scrapyard | Discovered new exit (range 16) 157 | -11/Scrapyard | Entered Materials 254 | -10/Materials | Discovered new exit (range 5) 320 | -10/Materials | Build established: Mutant 372 | -10/Materials | Discovered new exit (range 11) 406 | -10/Materials | Discovered new exit (range 11) 499 | -10/Materials | Core integrity fell below 50% 1234 | -10/Materials | Discovered new exit (range 4) 1238 | -10/Materials | Entered Subcaves 1239 | -10/Subcaves | Approached by a straggling Scientist 1260 | -10/Subcaves | Visited Clippyterm 1264 | -10/Subcaves | Learned location of Extension (-4) 1661 | -10/Subcaves | Shifting Twisted Machinery released Hvy. Battle Rifle 1890 | -10/Subcaves | Shifting Twisted Machinery released Piercing Trap 2392 | -10/Subcaves | A swath of the cavern ceiling suddenly collapsed 2476 | -10/Subcaves | Shifting Twisted Machinery released Sub. Power Source 2511 | -10/Subcaves | Shifting Twisted Machinery released Barrage Gun 2526 | -10/Subcaves | A swath of the cavern ceiling suddenly collapsed 2547 | -10/Subcaves | Discovered new exit (range 12) 2599 | -10/Subcaves | Discovered new exit (range 6) 2737 | -10/Subcaves | Core integrity fell below 20% 2818 | -10/Subcaves | A Subdweller sparked back to life 2818 | -10/Subcaves | A Subdweller sparked back to life 2818 | -10/Subcaves | A Subdweller sparked back to life 2897 | -10/Subcaves | Destroyed by H9-WFN(R) with Subdweller Laser Last Messages --------------- repair. 02779_ Subatomizers dissect the Disposable Heat Sink. 02781_ Dropped Wheel. 02783_ Dropped Lgt. Treads. 02805_ Subatomizers dissect the Wheel. 02818_ H9-WFN(R) creaks and sparks as it begins to move. 02818_ TQ-XK8(R) creaks and sparks as it begins to move. 02818_ XP-9L2(R) creaks and sparks as it begins to move. 02880_ Dropped Piercing Trap. 02881_ Installed Piercing Trap. 02882_ TQ-XK8(R) triggered Piercing Trap. 02882_ Spikes shoot up from the floor. 02882_ TQ-XK8(R) suffers critical hit (Impale). 02893_ Sub. Power Source destroyed. 02894_ TQ-XK8(R) destroyed. Map ----- +----------------------------------------------------+ | ???????????????????????????????????????# ##"#??#" | | ???????????????????????????????????????# "#???" | | ???????????????????????????????????????# ##?? | | ???????????????????????????????????????### #?? | | ?????????????????????????????????????????## ### | | ??????????????????????????????????????????# | | ?????????##???????????????????????????????#### | | ???????##"#??????????????????????????????????# | | ??????# ##?????????????????????????????????# # | | ?????" #?????????????????????????????????# # | | ?????? #????????????????????????????????## # | | ?????# #???????????????????????????????## " | | ????## ???????????????????????????????## """ | | ???## ???????????????????????????????# " | | ??## "" #???????????????????????????????# ## | | ?## " ##????????? ????????????????????# ### | | ?# "% ###### ???????????????????## #?## | | ?# %& "???????????????????# ##??? | | ??# % ??????????????????# #???? | | ## #% =% "???????????????????# " #???? | | # ## ########?????????????????????##### ""#???? | | # #????????????????####????##### ##???? | | ## # ##??????????????## ##???# #????? | | ###?## #???????????####&R ##### ##????? | | #### ##?????????## R%! ## ###?????? | | #?????????# [@## ### """ ? | | # #?????????# ;#;##"" " #?? | | #### ####??????# #"###""#" ###### ""#?? | | < #### #??????# " #" ####????## [ #?? | | ######## #" ##""#????????# ##?? | | # # # ## #"""#???????? ##??? | | # #### ?#" ##???????? #???? | | #### #?##???#"""#??????? ## ??? | | ##?## #?????## ###??????? #?## ?? | | ??## & #### ##???### #"##??????? #???# | | ??# & & ##?# #???##"""#"##??????? ?????### | | ??# ### ##?# ##??#" #"""#???????? ????????? | | ### #### #?# #### "#####????????? ?????????? | | ## #?## ## "# "# ?????????????????????? | | ## %#### ""### ?????????????????????? | | ## ## ""# ?????????????????????? | | ### ## # ### #?????????????????????? | | ## ### < ####?? ??????????????????????? | | # " # ## #?????? ??????????????????????? | | ####### ##?????????????????????????????? | | & &###??????##??????????????????????????????? | | #????????????????????????????????????????? | | "" #????????????????????????????????????????? | | ##"#????????????????????????????????????????? | | ???????????????????????????????????????????? | +----------------------------------------------------+ Best States ------------- Heat Dissipation 25 Energy Generation 10 Energy Capacity 250 Matter Stores 300 Matter Capacity 300 Sight Range 16 Terrain Scan Range 16 Terrain Scan Density 10 Armor Coverage 150 Evasion (%) 44 Item Schematics ----------------- Huge Storage Unit | -10/Materials | Hacked Wheel | -10/Materials | Hacked Robot Schematics ------------------ None Fabricated ------------ Nothing Repaired ---------- Nothing Alien Tech Used ----------------- None Achievements -------------- None Challenges ------------ None Game ------ Seed HardlightCombatSubcomponent Manual? 0 Play Time 00:21:01 Cumulative 362.3 hours Start 2025.06.05 @ 09:54:45 End 2025.06.05 @ 10:13:07 Sessions 1 Manual Loads 0 Difficulty Rogue Special Mode None Game No. 405 Rogue 405 Adventurer 0 Explorer 0 Win Type - Total 6 Types 3/1/1/1/0/0/0/0/0/0 Lore% 65 Gallery% 70 Achievement% 68 Wizard Run 0 Options --------- Layout 1 ASCII 0 Keyboard 0 Movement Numpad Keybinds 0 Fullscreen 1 Font 32/SmallcapsGlow Map View 50x35 Zoom Use 0% Tactical HUD 1 Map Filters NONE Filters NONE Steam 1 RUN: 5dd5bfce-dc0c-45a5-8074-74cbed785b09